Cogmind - Beta 16 @@@ ROGUE MODE // 2026.01.26 @ 05:40:38 Player: MrFartsburg Result: Destroyed by 0B-K4Q(R) with Subdweller Machine Gun Performance ------------- Evolutions (0) 0 Regions Visited (3) 600 Robots Destroyed (11) 55 Value Destroyed (253) 253 Prototype IDs (0) 0 Alien Tech Used (0) 0 Bonus (0) 0 TOTAL SCORE: 908 Bonus ------- None Cogmind --------- Core Integrity 0/250 Matter 110/300 Energy 125/125 System Corruption 7% Temperature Cool (0) Movement Walking (190) Ox1 Location -10/Subcaves Parts ------- > --- POWER (1) -------- Light Ion Engine > --- PROPULSION (2) --- Aluminum Leg Aluminum Leg > --- UTILITY (2) ------ Improved Heat Sink Large Storage Unit > --- WEAPON (2) ------- Assault Rifle > --- INVENTORY (15) --- Heat Sink Heat Sink High-capacity Storage Unit Light Assault Rifle Mining Laser Peak State ------------ > --- POWER ------------ Light Ion Engine > --- PROPULSION ------- Light Treads > --- UTILITY ---------- Improved Heat Sink Large Storage Unit > --- WEAPON ----------- Beam Cannon Light Cannon > --- INVENTORY -------- Light Ion Engine Aluminum Leg Aluminum Leg Heat Sink Heat Sink High-capacity Storage Unit Assault Rifle Light Assault Rifle Grenade Launcher Mining Laser [Rating: 9] Favorites ----------- Power Light Ion Engine Engine Light Ion Engine Propulsion Aluminum Leg Treads Light Treads Leg Aluminum Leg Utility Large Storage Unit Device ECM Suite Storage Large Storage Unit Weapon Assault Rifle Energy Gun EM Pulse Gun Energy Cannon Beam Cannon Ballistic Gun Assault Rifle Ballistic Cannon Light Cannon Launcher Grenade Launcher Build | -11 -10 -10 -10 ------- Run | Yrd Mat Min Sub Slots Evolved . | . . . . Power . | . . . . Propulsion . | . . . . Utility . | . . . . Weapon . | . . . . Parts Attached 19 | 6 6 6 1 Power 4 | 1 1 2 . Engine 4 | 1 1 2 . Core . | . . . . Reactor . | . . . . Propulsion 5 | 2 2 1 . Treads 2 | . 2 . . Leg 3 | 2 . 1 . Wheel . | . . . . Hover . | . . . . Flight . | . . . . Utility 4 | 1 2 1 . Device 2 | . 1 1 . Storage 2 | 1 1 . . Processor . | . . . . Hackware . | . . . . Protection . | . . . . Artifact . | . . . . Weapon 6 | 2 1 2 1 Energy Gun 1 | 1 . . . Energy Cannon 1 | . . 1 . Ballistic Gun 2 | 1 . . 1 Ballistic Cannon 1 | . 1 . . Launcher 1 | . . 1 . Special Weapon . | . . . . Impact Weapon . | . . . . Slashing Weapon . | . . . . Piercing Weapon . | . . . . Special Melee Weapon . | . . . . Unidentified Prototypes . | . . . . Parts Lost 11 | . 2 7 2 Power 3 | . 1 2 . Propulsion 2 | . . 2 . Utility 1 | . . 1 . Weapon 5 | . 1 2 2 Highest Loss Streak 7 | . 1 7 2 To Critical Strikes 1 | . 1 . . Average Backups 7 | 3 7 10 6 Power 1 | . 1 1 . Propulsion 1 | 2 1 1 . Utility 1 | . . 3 3 Weapon 3 | . 3 4 3 Tool/Special . | . . . . Unused Backups 5 | . 1 . 4 Power 1 | . 1 . . Propulsion . | . . . . Utility 2 | . . . 2 Weapon 2 | . . . 2 Tool/Special . | . . . . Average Slot Usage (%) 93 | . 97 80 97 Engine 13 | . 14 10 14 Treads 11 | . 11 13 . Leg 13 | . 15 3 28 Device 12 | . 13 11 14 Storage 14 | . 14 14 14 Energy Gun 6 | . 9 . . Energy Cannon 3 | . . 9 14 Ballistic Gun 10 | . 14 3 . Ballistic Cannon 5 | . 4 9 . Launcher 1 | . . 3 11 Peak Build Rating 9 | 6 8 9 9 Average Rating 6 | 4 7 7 8 On Entrance 5 | . 6 8 9 Avg Prop Armor Cover (%) 7 | . . 7 . Naked Turns . | . . . . Heaviest Build 30 | 12 30 30 30 Greatest Support 40 | 20 40 40 20 Greatest Overweight (x) 9 | . 9 9 1 Average Overweight (x) . | . . 1 1 Largest Inventory Capacity 15 | 8 15 15 15 Average Capacity 13 | 6 13 15 15 Most Carried 13 | 5 13 13 6 Average Carried 7 | 3 7 10 5 Final Capacity 15 | 8 15 15 15 Final Carried 13 | 4 13 6 5 Class Distribution -------------------- 100% | Mutant Dominant Class ---------------- Mutant | -10/Materials Mutant | -10/Mines Mutant | -10/Subcaves Resources | -11 -10 -10 -10 ----------- Run | Yrd Mat Min Sub Matter Collected 441 | 242 193 6 . Remotely . | . . . . Salvage Created 400 | . 288 112 . Parts 24 | . 24 . . Haulers Intercepted . | . . . . Recyclers Shooed 1 | . 1 . . Parts Field Recycled . | . . . . Retrieved Matter . | . . . . Parts Self-Destructed . | . . . . Prevented . | . . . . Parts Restored . | . . . . Kills | -11 -10 -10 -10 ------- Run | Yrd Mat Min Sub Combat Hostiles Destroyed 26 | . 11 15 . Guns 6 | . 6 . . Cannons 11 | . 5 6 . AOE 9 | . . 9 . Classes Destroyed 3 | . 2 1 . Swarmer 6 | . 6 . . Grunt 5 | . 5 . . Assembled 15 | . . 15 . Best Kill Streak 10 | . 4 10 . Combat Bots Only 10 | . 4 10 . Max Kills in Single Turn 2 | . 2 2 . Gunslinging 1 | . 1 . . Exploded 2 | . . 2 . Melee . | . . . . Uniques/NPCs Destroyed . | . . . . Combat | -11 -10 -10 -10 -------- Run | Yrd Mat Min Sub Hostile Shots Fired 128 | . 79 45 4 Missed 34 | . 26 8 . Hits 94 | . 53 37 4 Melee 11 | . . 11 . Projectile 83 | . 53 26 4 Critical Strikes 2 | . 2 . . Part Disruptions 4 | . . 4 . Damage Taken 1320 | . 499 739 82 Core 260 | . 93 148 19 Absorbed by Shields . | . . . . Core Remaining (%) 100 | 100 . . . Volleys Fired 63 | . 28 33 2 Largest 2 | . 2 2 2 Hottest 90 | . 60 90 80 Shots Fired 108 | . 54 51 3 Gun 47 | . 42 3 2 Cannon 54 | . 12 41 1 Launcher 7 | . . 7 . Special . | . . . . Kinetic 64 | . 40 22 2 Thermal 23 | . . 22 1 Explosive 7 | . . 7 . Electromagnetic 14 | . 14 . . Robot Hit Streak 5 | . 5 5 3 Robot Miss Streak 4 | . 4 3 . Penetration Max . | . . . . Secondary Targets 1 | . 1 . . Max Gunslinging Chain 1 | . 1 . . Shots Hit Robots 69 | . 31 35 3 Core Hits 41 | . 14 27 . Critical Kills . | . . . . Critical Parts Destroyed . | . . . . Critical Strikes 1 | . . 1 . Blast 1 | . . 1 . Melee Attacks . | . . . . Impact . | . . . . Slashing . | . . . . Piercing . | . . . . Sneak Attacks . | . . . . Combat Hostiles . | . . . . Follow-up Attacks . | . . . . Damage Inflicted 1321 | . 451 830 40 Guns 324 | . 274 27 23 Cannons 657 | . 176 464 17 Explosions 339 | . . 339 . Melee . | . . . . Ramming 1 | . 1 . . Kinetic 631 | . 378 230 23 Thermal 278 | . . 261 17 Explosive 339 | . . 339 . Electromagnetic 72 | . 72 . . Impact . | . . . . Slashing . | . . . . Piercing . | . . . . Highest Corruption 7 | . . 7 7 Average Corruption 6 | . . 6 7 Corruption Purged . | . . . . Corruption Blocked . | . . . . Effects 5 | . . 4 1 Message Errors 1 | . . 1 . Heat Flow Errors 1 | . . 1 . Energy Discharges 1 | . . 1 . Data Loss (minor) 1 | . . . 1 Weapon Failures 1 | . . 1 . Overload Shots . | . . . . Overflow Damage 23 | . 14 9 . Projectiles 23 | . 14 9 . Explosions . | . . . . Melee . | . . . . Knockbacks 3 | . 1 2 . Impact . | . . . . Kinetic 3 | . 1 2 . Secondary . | . . . . Self-Inflicted Damage 62 | . . 62 . Shots 4 | . . 4 . Rammed 1 | . 1 . . Targets Rammed 2 | . 2 . . Kicked 1 | . 1 . . Crushed . | . . . . Highest Temperature 452 | . 9 452 . Average Temperature 162 | . 4 233 . Received Heat Transfer 286 | . 126 160 . Effects 3 | . . 3 . Shutdowns 1 | . . 1 . Interference 2 | . . 2 . Siege Activations . | . . . . Martial Activations . | . . . . Shielding Activations . | . . . . Robots Disrupted . | . . . . Combat Hostiles . | . . . . Robots Corrupted . | . . . . Combat Hostiles . | . . . . Parts Fried . | . . . . Impact Corruptions . | . . . . Robots Melted . | . . . . Combat Hostiles . | . . . . Parts Melted . | . . . . Heat Transferred 592 | . . 555 37 Parts Sabotaged . | . . . . Parts Stolen . | . . . . Parts Stripped . | . . . . Power Chain Reactions . | . . . . Alert | -11 -10 -10 -10 ------- Run | Yrd Mat Min Sub Maximum Alert Level . | . . . . Low Security (%) 100 | 100 100 100 . Level 1 . | . . . . Level 2 . | . . . . Level 3 . | . . . . Level 4 . | . . . . Level 5 . | . . . . High Security . | . . . . Max Security . | . . . . Peak Influence 116 | . 116 33 . Initial 33 | . . 33 . Average 33 | . 45 13 . Influence Increases 319 | . 278 41 . Destroy 0b10 Robot/C 220 | . 220 . . Destroy Leader 40 | . 40 . . Successful Hack 2 | . 2 . . Disable Machine 15 | . 15 . . Destroy Structure 42 | . 1 41 . Influence Decreases 319 | . 192 106 21 Entered New Map 65 | . . 53 12 Time Decay 221 | . 172 40 9 Lost Part 33 | . 20 13 . Squads Dispatched 1 | . 1 . . Investigation 1 | . 1 . . Extermination . | . . . . Reinforcement . | . . . . Assault . | . . . . Garrison . | . . . . Intercept . | . . . . Searches Triggered . | . . . . Construction Impeded . | . . . . Haulers Reinforced . | . . . . Active Scanning Responses . | . . . . Cargo Convoy Interrupts . | . . . . Stealth | -11 -10 -10 -10 --------- Run | Yrd Mat Min Sub Distress Signals . | . . . . Communications Jammed . | . . . . Distress Signals . | . . . . Times Spotted 41 | . 13 27 1 Peak Tracking Total 16 | . 4 16 1 Tactical Retreats 4 | . 2 2 . ECM-based Alert Blocks 2 | . 2 . . Traps | -11 -10 -10 -10 ------- Run | Yrd Mat Min Sub Traps Triggered 1 | . 1 . . Indirectly . | . . . . Trap Hack Attempts . | . . . . Triggered . | . . . . Disarmed . | . . . . Reprogrammed . | . . . . Reused . | . . . . Traps Extracted . | . . . . Installed . | . . . . Triggered . | . . . . Machines | -11 -10 -10 -10 ---------- Run | Yrd Mat Min Sub Machines Disabled 1 | . 1 . . Max in Single Turn 1 | . 1 . . Machines Repaired . | . . . . Machines Dismantled . | . . . . Machines Sabotaged . | . . . . Overloaded Fab Kills . | . . . . Hacking | -11 -10 -10 -10 --------- Run | Yrd Mat Min Sub Machines Accessed 2 | . 2 . . Terminals 1 | . 1 . . Fabricators . | . . . . Repair Stations . | . . . . Recycling Units 1 | . 1 . . Scanalyzers . | . . . . Garrison Access . | . . . . Total Hacks 5 | . 5 . . Successful 4 | . 4 . . Failed 1 | . 1 . . Catastrophic . | . . . . Database Lockouts . | . . . . Manual . | . . . . Terminals 3 | . 3 . . Fabricators . | . . . . Repair Stations . | . . . . Recycling Units 2 | . 2 . . Scanalyzers . | . . . . Garrison Access . | . . . . Terminal Hacks 2 | . 2 . . Record 2 | . 2 . . Fabricator Hacks . | . . . . Repair Station Hacks . | . . . . Recycling Unit Hacks 2 | . 2 . . Process 1 | . 1 . . Report Inventory 1 | . 1 . . Scanalyzer . | . . . . Garrison Access Hacks . | . . . . Unauthorized Hacks . | . . . . Terminals . | . . . . Fabricators . | . . . . Repair Stations . | . . . . Recycling Units . | . . . . Scanalyzers . | . . . . Garrison Access . | . . . . Data Cores Recovered . | . . . . Used . | . . . . Hacking Detections 1 | . 1 . . Full Trace Events 1 | . 1 . . Feedback Events . | . . . . Feedback Blocked . | . . . . Robot Schematics Acquired . | . . . . Robots Built . | . . . . Authchips . | . . . . Time . | . . . . Total Robot Build Rating . | . . . . Part Schematics Acquired . | . . . . Parts Built . | . . . . Authchips . | . . . . Time . | . . . . Total Part Build Rating . | . . . . Part Studies Acquired . | . . . . Parts Repaired . | . . . . Time . | . . . . Parts Recycled . | . . . . Recycled Matter 147 | . 147 . . Retrieved Matter . | . . . . Retrieved Components . | . . . . Parts Scanalyzed . | . . . . Part Schematics Acquired . | . . . . Parts Damaged . | . . . . Bothacking | -11 -10 -10 -10 ------------ Run | Yrd Mat Min Sub Used RIF Installer . | . . . . Robots Hacked . | . . . . Non-combat . | . . . . Combat . | . . . . Robot Hacks Applied . | . . . . Relay Couplers Released . | . . . . Fabnet Peak Effective % . | . . . . Robots Rewired . | . . . . Allies Hacked . | . . . . Hacks Repelled . | . . . . Allies | -11 -10 -10 -10 -------- Run | Yrd Mat Min Sub Total Allies . | . . . . Largest Group . | . . . . Highest-Rated Group . | . . . . Highest-Rated Ally . | . . . . Total Orders . | . . . . Ally Attacks . | . . . . Total Damage . | . . . . Kills . | . . . . Allies Corrupted . | . . . . Allies Melted . | . . . . Intel | -11 -10 -10 -10 ------- Run | Yrd Mat Min Sub Active Infowar (turns) 505 | . 465 40 . ECM 505 | . 465 40 . Robot Analysis Total . | . . . . Derelict Logs Recovered . | . . . . Drone Launches . | . . . . Drone Recoveries . | . . . . Exploration | -11 -10 -10 -10 ------------- Run | Yrd Mat Min Sub Turns Passed 754 | 78 486 152 38 Spaces Moved 337 | 59 237 27 14 Core 18 | 12 3 3 . Treads 107 | . 90 17 . Legs 212 | 47 144 7 14 Wheels . | . . . . Hover . | . . . . Flight . | . . . . Fastest Speed 50 | 50 120 160 190 Average Speed 155 | 105 158 223 190 Slowest Speed 500 | 120 500 500 190 Overloaded Moves . | . . . . Propulsion Burnouts . | . . . . Robots Hopped . | . . . . Potential Cave-ins . | . . . . Cave-ins Triggered . | . . . . Exploration Rate (%) 15 | 4 47 10 2 Regions Visited 3 Branch Regions 2 Pre-discovered Areas . | . . . . Known Exits Taken . | . . . . Unknown Exits Taken 3 | 1 1 1 . Scrap Searched . | . . . . Spaces Dug . | . . . . Terrain Destroyed 58 | . . 58 . Melee . | . . . . Projectile . | . . . . AOE 58 | . . 58 . Terrain Rammed . | . . . . Walls Destroyed . | . . . . Machines Disabled . | . . . . Actions | -11 -10 -10 -10 --------- Run | Yrd Mat Min Sub Total 457 | 74 292 68 23 Wait 10 | . 2 2 6 Move 334 | 58 236 26 14 Hop . | . . . . Pick Up 26 | 10 16 . . Fast Attach . | . . . . Attach 19 | 6 5 7 1 Detach . | . . . . Swap 1 | . 1 . . Drop 2 | . 2 . . Fire 63 | . 28 33 2 Melee . | . . . . Ram . | . . . . Kick 1 | . 1 . . Crush 1 | . 1 . . Escape Stasis . | . . . . Rewire . | . . . . Trap . | . . . . Miscellaneous . | . . . . Route ------- -11/Scrapyard -10/Materials -10/Mines -10/Subcaves History --------- Turn | Location | Event 5 | -11/Scrapyard | Discovered new exit (range 14) 79 | -11/Scrapyard | Entered Materials 316 | -10/Materials | Build established: Mutant 537 | -10/Materials | Discovered new exit (range 7) 565 | -10/Materials | Entered Mines 566 | -10/Mines | Assembled infested the area 645 | -10/Mines | Core integrity fell below 50% 677 | -10/Mines | Core integrity fell below 20% 692 | -10/Mines | Discovered new exit (range 6) 693 | -10/Mines | Lost 7 parts (2p2n1u2w) 713 | -10/Mines | Destroyed 10 combat bots 717 | -10/Mines | Entered Subcaves 755 | -10/Subcaves | Destroyed by 0B-K4Q(R) with Subdweller Machine Gun Last Messages --------------- as-92841 destroyed. The unstable cave ceiling collapses. as-98820 destroyed. as-80520 destroyed. as-11681 destroyed. The unstable cave ceiling collapses. as-73248 destroyed. as-29905 destroyed. [Achievement: Exterminator] EXIT=FOUND The unstable cave ceiling collapses. System corrupted: Energy discharge (-22). The unstable cave ceiling collapses. [Achievement: I Survived The Infestation] LOCATION=UNKNOWN AMBIENT_HEAT=-10 GOAL=ESCAPE System corrupted: Component data lost. Grenade Launcher destroyed. Beam Cannon destroyed. Map ----- +----------------------------------------------------+ | ???????????????????????????????????????????? | | ???????????????????????????????????????????? | | ???????????????????????????????????????????? | | ???????????????????????????????????????????? | | ???????????????????????????????????????????? | | ???????????????????????????????????????????? | | ??????????????????? ??????????????????????? | | ?????????????????? #?????????????????????? | | ?????????????????? ### ??????????????????? | | ??????????????????# # ?????????????????? | | ??????????????????# ??????????????????? | | ?????????????????## #??????????????????? | | ?????????????????# ???????????????????? | | ?????????????????? ????????????????????? | | ??????????????????# #????????????????????? | | ?????????????????## #????????????????????? | | ????????????????## ##???????????????????? | | ???????????????## #???????????????????? | | ??????????????## ##??????????????????? | | ??????????????# #???##?????????????? | | ??????????????# ##### #?????????????? | | ??????????????# #?????????????? | | ??????????????# #?????????????? | | ??????????????# ## # ## ##?????????????? | | ??????????????## ####### ##??????????????? | | ???????????????##"#???# @##???????????????? | | ????????????????###??# ##????????????????? | | ????????????????????#" #??????????????????? | | ????????????????????# R#???????????????????? | | ????????????????????# "????????????????????? | | ???????????????????# ?????????????????????? | | ??????????????????# ?????????????????????? | | ??????????????????# ??????????????????????? | | ??????????????????# ???????????????????????? | | ??????????????????#"???????????????????????? | | ???????????????????????????????????????????? | | ???????????????????????????????????????????? | | ???????????????????????????????????????????? | | ???????????????????????????????????????????? | | ???????????????????????????????????????????? | | ???????????????????????????????????????????? | | ???????????????????????????????????????????? | | ???????????????????????????????????????????? | | ???????????????????????????????????????????? | | ???????????????????????????????????????????? | | ???????????????????????????????????????????? | | ???????????????????????????????????????????? | | ???????????????????????????????????????????? | | ???????????????????????????????????????????? | | ???????????????????????????????????????????? | +----------------------------------------------------+ Best States ------------- Heat Dissipation 39 Energy Generation 10 Energy Capacity 125 Matter Stores 300 Matter Capacity 300 Sight Range 16 Terrain Scan Density 10 ECM Strength 1 Evasion (%) 55 Recoil Reduction 2 Item Schematics ----------------- None Robot Schematics ------------------ None Fabricated ------------ Nothing Repaired ---------- Nothing Studied --------- None Alien Tech Used ----------------- None Achievements -------------- Exterminator I Survived The Infestation Challenges ------------ None Game ------ Seed TrapTargetReconstructor Manual? 0 Play Time 00:12:58 Cumulative 9.6 hours Start 2026.01.26 @ 05:27:40 End 2026.01.26 @ 05:40:38 Sessions 1 Manual Loads 0 Difficulty Rogue Special Mode None Game No. 16 Rogue 16 Adventurer 0 Explorer 0 Win Type - Total 0 Types 0/0/0/0/0/0/0/0/0/0 Lore% 3 Gallery% 11 Achievement% 10 Wizard Run 0 Options --------- Layout 1 ASCII 0 Keyboard 0 Movement Numpad Keybinds 0 Fullscreen 1 Font 32/SmallcapsGlow Map View 50x35 Zoom Use 0% Tactical HUD 0 Map Filters NONE Filters NONE Steam 1 RUN: 3379d2b6-cbca-4a88-b371-20c5082305c3